[Event "*** Titled Tuesday Blitz"]
[Site "Chess.com"]
[Date "2021.04.20"]
[Round "9"]
[White "fyall777"]
[Black "chessajedrezz2020"]
[Result "0-1"]
[WhiteElo "2346"]
[BlackElo "2707"]
[TimeControl "180+1"]
[EndTime "11:45:53 PDT"]
[Termination "chessajedrezz2020 won on time"]

1. d4 {[%clk 0:03:00.9]} 1... d5 {[%clk 0:02:58.7]} 2. c4 {[%clk 0:03:01.1]}
2... c6 {[%clk 0:02:58.3]} 3. Nc3 {[%clk 0:03:01.1]} 3... Nf6 {[%clk 0:02:57.5]}
4. e3 {[%clk 0:03:01.7]} 4... g6 {[%clk 0:02:56.4]} 5. Nf3 {[%clk 0:02:57.8]}
5... Bg7 {[%clk 0:02:56.2]} 6. cxd5 {[%clk 0:02:58.4]} 6... Nxd5 {[%clk
0:02:55.9]} 7. Bc4 {[%clk 0:02:58.1]} 7... O-O {[%clk 0:02:55.5]} 8. O-O {[%clk
0:02:58.1]} 8... Be6 {[%clk 0:02:54.7]} 9. Qe2 {[%clk 0:02:51.4]} 9... h6 {[%clk
0:02:47.4]} 10. e4 {[%clk 0:02:50.3]} 10... Nxc3 {[%clk 0:02:23.7]} 11. bxc3
{[%clk 0:02:50.1]} 11... Bxc4 {[%clk 0:02:23.8]} 12. Qxc4 {[%clk 0:02:50]} 12...
Qc7 {[%clk 0:02:17.9]} 13. Rb1 {[%clk 0:02:46.6]} 13... Nd7 {[%clk 0:02:00.6]}
14. Qb4 {[%clk 0:02:42]} 14... b6 {[%clk 0:01:54]} 15. Qxe7 {[%clk 0:02:32]}
15... Rfe8 {[%clk 0:01:50.4]} 16. Qh4 {[%clk 0:02:30.2]} 16... g5 {[%clk
0:01:49.1]} 17. Bxg5 {[%clk 0:02:18.6]} 17... hxg5 {[%clk 0:01:49]} 18. Nxg5
{[%clk 0:02:18.9]} 18... Nf8 {[%clk 0:01:49.4]} 19. e5 {[%clk 0:02:16.6]} 19...
f6 {[%clk 0:01:43.7]} 20. exf6 {[%clk 0:02:07.5]} 20... Bxf6 {[%clk 0:01:43.4]}
21. Qg4 {[%clk 0:02:00.6]} 21... Bxg5 {[%clk 0:01:19.5]} 22. Qxg5+ {[%clk
0:02:00.5]} 22... Qg7 {[%clk 0:01:20.4]} 23. Qf5 {[%clk 0:01:43.5]} 23... Re6
{[%clk 0:01:12]} 24. g3 {[%clk 0:01:36.3]} 24... Rae8 {[%clk 0:01:10.8]} 25.
Rbd1 {[%clk 0:01:28.7]} 25... Ng6 {[%clk 0:01:00.4]} 26. c4 {[%clk 0:01:22.1]}
26... Rf6 {[%clk 0:00:50.8]} 27. Qg4 {[%clk 0:01:22]} 27... Rfe6 {[%clk
0:00:45.9]} 28. d5 {[%clk 0:01:13.4]} 28... Re4 {[%clk 0:00:44.2]} 29. Qh5
{[%clk 0:00:56.4]} 29... Nf4 {[%clk 0:00:20.3]} 30. Qf3 {[%clk 0:00:46.5]} 30...
Ne2+ {[%clk 0:00:16.3]} 31. Kh1 {[%clk 0:00:43.9]} 31... Nd4 {[%clk 0:00:16.1]}
32. Qd3 {[%clk 0:00:39.1]} 32... cxd5 {[%clk 0:00:15.7]} 33. cxd5 {[%clk
0:00:37.8]} 33... Qe5 {[%clk 0:00:14.3]} 34. f3 {[%clk 0:00:28.1]} 34... Rg4
{[%clk 0:00:03.3]} 35. Rde1 {[%clk 0:00:16.7]} 35... Qxe1 {[%clk 0:00:01.6]} 36.
Rxe1 {[%clk 0:00:17]} 36... Rxe1+ {[%clk 0:00:02.5]} 37. Kg2 {[%clk 0:00:17.5]}
37... Re2+ {[%clk 0:00:02.6]} 38. Kh3 {[%clk 0:00:17.7]} 38... Rg7 {[%clk
0:00:02.5]} 39. Qxd4 {[%clk 0:00:17.3]} 39... Rh7+ {[%clk 0:00:02.8]} 40. Kg4
{[%clk 0:00:17.7]} 40... Rexh2 {[%clk 0:00:03.2]} 41. d6 {[%clk 0:00:17.8]}
41... Rg7+ {[%clk 0:00:03.2]} 42. Kf4 {[%clk 0:00:18.1]} 42... Rd7 {[%clk
0:00:03.1]} 43. Qd5+ {[%clk 0:00:17.4]} 43... Kf8 {[%clk 0:00:03.5]} 44. Qf5+
{[%clk 0:00:17]} 44... Rf7 {[%clk 0:00:03.2]} 45. d7 {[%clk 0:00:11.3]} 45...
Rxf5+ {[%clk 0:00:02.9]} 46. Kxf5 {[%clk 0:00:11.8]} 46... Ke7 {[%clk
0:00:02.9]} 47. d8=Q+ {[%clk 0:00:12.7]} 47... Kxd8 {[%clk 0:00:03.2]} 48. g4
{[%clk 0:00:12.9]} 48... Ke8 {[%clk 0:00:03.6]} 49. f4 {[%clk 0:00:11.8]} 49...
Rxa2 {[%clk 0:00:04]} 50. Kg6 {[%clk 0:00:12.2]} 50... Ra4 {[%clk 0:00:03.4]}
51. Kg5 {[%clk 0:00:12]} 51... Kf7 {[%clk 0:00:03.6]} 52. f5 {[%clk 0:00:12.9]}
52... Rc4 {[%clk 0:00:03.6]} 53. Kh5 {[%clk 0:00:13.1]} 53... Kf6 {[%clk
0:00:04]} 54. g5+ {[%clk 0:00:09.2]} 54... Kxf5 {[%clk 0:00:03.9]} 55. g6 {[%clk
0:00:09.8]} 55... Rg4 {[%clk 0:00:04]} 56. Kh6 {[%clk 0:00:07]} 56... Rxg6+
{[%clk 0:00:03.9]} 57. Kh7 {[%clk 0:00:07.4]} 57... a5 {[%clk 0:00:04.2]} 0-1

[Event "*** Titled Tuesday Blitz"]
[Site "Chess.com"]
[Date "2021.04.20"]
[Round "9"]
[White "davidkalashian"]
[Black "NTBT_DHS"]
[Result "0-1"]
[WhiteElo "2552"]
[BlackElo "2729"]
[TimeControl "180+1"]
[EndTime "11:45:54 PDT"]
[Termination "NTBT_DHS won by checkmate"]

1. e4 {[%clk 0:03:00.9]} 1... g6 {[%clk 0:02:59.2]} 2. d4 {[%clk 0:03:00.6]}
2... Bg7 {[%clk 0:02:59.4]} 3. Nc3 {[%clk 0:03:00.9]} 3... a6 {[%clk 0:02:59.8]}
4. a4 {[%clk 0:03:00.4]} 4... d6 {[%clk 0:02:59.1]} 5. f4 {[%clk 0:02:59.9]}
5... c5 {[%clk 0:02:55]} 6. Be3 {[%clk 0:02:42.1]} 6... Qa5 {[%clk 0:02:47.3]}
7. dxc5 {[%clk 0:02:30.8]} 7... Bxc3+ {[%clk 0:02:38.9]} 8. bxc3 {[%clk
0:02:31.7]} 8... Qxc3+ {[%clk 0:02:36.4]} 9. Bd2 {[%clk 0:02:13.8]} 9... Qxc5
{[%clk 0:02:35.6]} 10. Nf3 {[%clk 0:02:13]} 10... Nf6 {[%clk 0:02:33.3]} 11. Bd3
{[%clk 0:02:13.1]} 11... O-O {[%clk 0:02:32.5]} 12. Qe2 {[%clk 0:02:06.7]} 12...
Nc6 {[%clk 0:02:31.8]} 13. Rb1 {[%clk 0:02:00.5]} 13... Bg4 {[%clk 0:02:19.4]}
14. Qf2 {[%clk 0:01:55.3]} 14... Bxf3 {[%clk 0:02:10]} 15. Qxc5 {[%clk
0:01:43.3]} 15... dxc5 {[%clk 0:02:10.9]} 16. gxf3 {[%clk 0:01:43.8]} 16... Rab8
{[%clk 0:02:09.9]} 17. Be3 {[%clk 0:01:39.5]} 17... Nh5 {[%clk 0:01:34.2]} 18.
Rb6 {[%clk 0:01:35]} 18... Rfd8 {[%clk 0:01:23.1]} 19. Kf2 {[%clk 0:01:34.7]}
19... Nb4 {[%clk 0:01:22.3]} 20. Ke2 {[%clk 0:01:27]} 20... Rd6 {[%clk
0:01:19.2]} 21. Bxc5 {[%clk 0:01:06]} 21... Nxf4+ {[%clk 0:01:19]} 22. Ke3
{[%clk 0:01:06.3]} 22... Rxb6 {[%clk 0:01:07.2]} 23. Bxb6 {[%clk 0:01:07.2]}
23... Nfd5+ {[%clk 0:01:04.3]} 24. exd5 {[%clk 0:01:01.7]} 24... Nxd5+ {[%clk
0:01:05.2]} 25. Kd4 {[%clk 0:00:53.4]} 25... Nxb6 {[%clk 0:01:06.1]} 26. a5
{[%clk 0:00:53.7]} 26... Rd8+ {[%clk 0:01:02]} 27. Kc5 {[%clk 0:00:47.1]} 27...
Nd7+ {[%clk 0:00:55.5]} 28. Kd4 {[%clk 0:00:44.1]} 28... Nb8+ {[%clk 0:00:45.6]}
29. Ke3 {[%clk 0:00:40.6]} 29... Nc6 {[%clk 0:00:45.3]} 30. Ra1 {[%clk
0:00:41.5]} 30... Rd5 {[%clk 0:00:44.1]} 31. Be4 {[%clk 0:00:30.2]} 31... Rxa5
{[%clk 0:00:43.7]} 32. Rd1 {[%clk 0:00:28.4]} 32... Ra3+ {[%clk 0:00:39.4]} 33.
Kf4 {[%clk 0:00:26.4]} 33... e5+ {[%clk 0:00:26]} 34. Kg5 {[%clk 0:00:23.4]}
34... Kg7 {[%clk 0:00:21.3]} 35. Rd7 {[%clk 0:00:23.9]} 35... h6+ {[%clk
0:00:20.7]} 36. Kh4 {[%clk 0:00:23.8]} 36... Nd4 {[%clk 0:00:19.4]} 37. Kg3
{[%clk 0:00:16]} 37... Nf5+ {[%clk 0:00:13.1]} 38. Kf2 {[%clk 0:00:12.1]} 38...
b5 {[%clk 0:00:06.4]} 39. Bd5 {[%clk 0:00:11.7]} 39... Kf6 {[%clk 0:00:07.1]}
40. h4 {[%clk 0:00:10]} 40... Nxh4 {[%clk 0:00:06.9]} 41. Rxf7+ {[%clk
0:00:09.8]} 41... Kg5 {[%clk 0:00:07.5]} 42. Rf8 {[%clk 0:00:09.2]} 42... Rc3
{[%clk 0:00:07]} 43. Be4 {[%clk 0:00:08.8]} 43... a5 {[%clk 0:00:06.9]} 44. Ra8
{[%clk 0:00:09.5]} 44... a4 {[%clk 0:00:07.1]} 45. Ra5 {[%clk 0:00:09.4]} 45...
Rc5 {[%clk 0:00:07.5]} 46. Ra6 {[%clk 0:00:09]} 46... Nf5 {[%clk 0:00:07.5]} 47.
Ra8 {[%clk 0:00:07.1]} 47... Nd6 {[%clk 0:00:07]} 48. Bd3 {[%clk 0:00:06.5]}
48... h5 {[%clk 0:00:05.8]} 49. Ra6 {[%clk 0:00:06.3]} 49... Nf5 {[%clk
0:00:05.5]} 50. Ra8 {[%clk 0:00:06.5]} 50... h4 {[%clk 0:00:05.8]} 51. Rh8
{[%clk 0:00:06.6]} 51... b4 {[%clk 0:00:05]} 52. Ra8 {[%clk 0:00:07.5]} 52... b3
{[%clk 0:00:05.2]} 53. Kg2 {[%clk 0:00:08.1]} 53... bxc2 {[%clk 0:00:05.5]} 54.
Rxa4 {[%clk 0:00:03.3]} 54... c1=Q {[%clk 0:00:04.8]} 55. Rg4+ {[%clk
0:00:04.2]} 55... Kf6 {[%clk 0:00:05.4]} 56. Bxf5 {[%clk 0:00:04.4]} 56... gxf5
{[%clk 0:00:05]} 57. Kh3 {[%clk 0:00:05.3]} 57... Qh1# {[%clk 0:00:04.4]} 0-1

[Event "*** Titled Tuesday Blitz"]
[Site "Chess.com"]
[Date "2021.04.20"]
[Round "9"]
[White "PchelkinVK"]
[Black "eduardoperalta"]
[Result "1-0"]
[WhiteElo "2642"]
[BlackElo "2497"]
[TimeControl "180+1"]
[EndTime "11:45:55 PDT"]
[Termination "PchelkinVK won on time"]

1. d4 {[%clk 0:01:02.4]} 1... Nf6 {[%clk 0:02:58.1]} 2. Nc3 {[%clk 0:00:55.3]}
2... d5 {[%clk 0:02:57.5]} 3. Bf4 {[%clk 0:00:55]} 3... c6 {[%clk 0:02:57.7]} 4.
Nf3 {[%clk 0:00:55.4]} 4... g6 {[%clk 0:02:58.2]} 5. Qd2 {[%clk 0:00:55.1]} 5...
h6 {[%clk 0:02:54.7]} 6. O-O-O {[%clk 0:00:55]} 6... Bg7 {[%clk 0:02:55]} 7. Ne5
{[%clk 0:00:55.3]} 7... Nbd7 {[%clk 0:02:53.5]} 8. f3 {[%clk 0:00:54.8]} 8...
Nb6 {[%clk 0:02:47.5]} 9. g4 {[%clk 0:00:52.4]} 9... Nfd7 {[%clk 0:02:45]} 10.
Nxd7 {[%clk 0:00:46.8]} 10... Bxd7 {[%clk 0:02:43.9]} 11. e3 {[%clk 0:00:44.9]}
11... a5 {[%clk 0:02:37.5]} 12. h4 {[%clk 0:00:42.5]} 12... a4 {[%clk 0:02:37]}
13. a3 {[%clk 0:00:43.1]} 13... Be6 {[%clk 0:02:33]} 14. Kb1 {[%clk 0:00:40]}
14... Qd7 {[%clk 0:02:25.7]} 15. Na2 {[%clk 0:00:32.4]} 15... h5 {[%clk
0:02:22]} 16. g5 {[%clk 0:00:29.8]} 16... Bf5 {[%clk 0:02:20.9]} 17. Bd3 {[%clk
0:00:26.2]} 17... Bxd3 {[%clk 0:02:18.6]} 18. cxd3 {[%clk 0:00:25.8]} 18... O-O
{[%clk 0:02:14]} 19. Qb4 {[%clk 0:00:25.5]} 19... Nc8 {[%clk 0:02:12.3]} 20. e4
{[%clk 0:00:23]} 20... Nd6 {[%clk 0:02:10.5]} 21. Be5 {[%clk 0:00:20.1]} 21...
Nb5 {[%clk 0:02:04.3]} 22. Nc3 {[%clk 0:00:14.5]} 22... Nxc3+ {[%clk 0:01:52.5]}
23. Qxc3 {[%clk 0:00:13.6]} 23... f6 {[%clk 0:01:50.5]} 24. gxf6 {[%clk
0:00:13]} 24... exf6 {[%clk 0:01:50]} 25. Bf4 {[%clk 0:00:12.2]} 25... Kh7
{[%clk 0:01:50.2]} 26. Rhg1 {[%clk 0:00:12.2]} 26... Qh3 {[%clk 0:01:46.4]} 27.
Bg3 {[%clk 0:00:12]} 27... Rac8 {[%clk 0:01:44.4]} 28. Qd2 {[%clk 0:00:12.3]}
28... Rfd8 {[%clk 0:01:40.2]} 29. Qf2 {[%clk 0:00:12.6]} 29... Qd7 {[%clk
0:01:35.7]} 30. Rg2 {[%clk 0:00:12]} 30... b5 {[%clk 0:01:24]} 31. Bf4 {[%clk
0:00:12]} 31... Rg8 {[%clk 0:01:22.4]} 32. Rdg1 {[%clk 0:00:11.2]} 32... Bh8
{[%clk 0:01:16.9]} 33. Bd2 {[%clk 0:00:11.1]} 33... f5 {[%clk 0:01:12.9]} 34.
Qe3 {[%clk 0:00:10.8]} 34... Qg7 {[%clk 0:01:02]} 35. Rxg6 {[%clk 0:00:10.7]}
35... Qxg6 {[%clk 0:01:02.2]} 36. Rxg6 {[%clk 0:00:11.6]} 36... Rxg6 {[%clk
0:01:02.7]} 37. exf5 {[%clk 0:00:11.9]} 37... Rf6 {[%clk 0:00:56.1]} 38. Qe7+
{[%clk 0:00:11.1]} 38... Bg7 {[%clk 0:00:55.2]} 39. Bf4 {[%clk 0:00:07.8]} 39...
Rcf8 {[%clk 0:00:50]} 40. Be5 {[%clk 0:00:08]} 40... R8f7 {[%clk 0:00:48.5]} 41.
Qe8 {[%clk 0:00:07.6]} 41... Rxf5 {[%clk 0:00:45.4]} 42. Qxc6 {[%clk 0:00:06]}
42... Rxf3 {[%clk 0:00:40.6]} 43. Qxd5 {[%clk 0:00:04.4]} 43... Rf1+ {[%clk
0:00:35.1]} 44. Ka2 {[%clk 0:00:04.7]} 44... R7f5 {[%clk 0:00:23.7]} 45. Qxb5
{[%clk 0:00:04.4]} 45... Rh1 {[%clk 0:00:20]} 46. Qd7 {[%clk 0:00:03.7]} 46...
Rxe5 {[%clk 0:00:12.1]} 47. dxe5 {[%clk 0:00:03.8]} 47... Rh2 {[%clk 0:00:11.7]}
48. Qf5+ {[%clk 0:00:03.4]} 48... Kg8 {[%clk 0:00:11.5]} 49. Qxh5 {[%clk
0:00:03.5]} 49... Rd2 {[%clk 0:00:10.4]} 50. Qf5 {[%clk 0:00:02.8]} 50... Rh2
{[%clk 0:00:06.1]} 51. h5 {[%clk 0:00:03.1]} 51... Rh4 {[%clk 0:00:04.9]} 52. d4
{[%clk 0:00:03.3]} 52... Rxd4 {[%clk 0:00:04]} 53. Qg6 {[%clk 0:00:03.9]} 53...
Kf8 {[%clk 0:00:02.6]} 54. Qf5+ {[%clk 0:00:03.5]} 54... Kg8 {[%clk 0:00:02.7]}
55. Qe6+ {[%clk 0:00:04.1]} 55... Kh7 {[%clk 0:00:02.4]} 56. Qg6+ {[%clk
0:00:04.7]} 56... Kg8 {[%clk 0:00:02.7]} 57. h6 {[%clk 0:00:05.2]} 57... Rd7
{[%clk 0:00:02.3]} 58. Qe8+ {[%clk 0:00:05.5]} 58... Kh7 {[%clk 0:00:02.1]} 59.
Qxd7 {[%clk 0:00:05.6]} 59... Kxh6 {[%clk 0:00:03]} 60. e6 {[%clk 0:00:06.2]}
1-0

[Event "*** Titled Tuesday Blitz"]
[Site "Chess.com"]
[Date "2021.04.20"]
[Round "9"]
[White "Cptn2"]
[Black "Nayemhaque22"]
[Result "1-0"]
[WhiteElo "2602"]
[BlackElo "2458"]
[TimeControl "180+1"]
[EndTime "11:45:56 PDT"]
[Termination "Cptn2 won by resignation"]

1. e4 {[%clk 0:02:51.9]} 1... c6 {[%clk 0:03:00]} 2. Nf3 {[%clk 0:02:50.9]} 2...
d5 {[%clk 0:03:00.9]} 3. Nc3 {[%clk 0:02:51.8]} 3... Bg4 {[%clk 0:03:00.6]} 4.
h3 {[%clk 0:02:41]} 4... Bxf3 {[%clk 0:03:00.8]} 5. Qxf3 {[%clk 0:02:41.9]} 5...
e6 {[%clk 0:03:01.7]} 6. d3 {[%clk 0:02:39.7]} 6... Bc5 {[%clk 0:02:57.4]} 7.
Qg3 {[%clk 0:02:36.7]} 7... Qf6 {[%clk 0:02:42.7]} 8. Bf4 {[%clk 0:02:26]} 8...
Nd7 {[%clk 0:02:39.8]} 9. Be2 {[%clk 0:02:22.6]} 9... Ne7 {[%clk 0:02:29.4]} 10.
O-O {[%clk 0:02:19.2]} 10... Ng6 {[%clk 0:02:28.4]} 11. Bg5 {[%clk 0:02:15.8]}
11... Qe5 {[%clk 0:02:27.3]} 12. Qxe5 {[%clk 0:02:14.2]} 12... Ndxe5 {[%clk
0:02:24.9]} 13. Kh2 {[%clk 0:02:05.4]} 13... f6 {[%clk 0:02:08.8]} 14. Bd2
{[%clk 0:02:01.2]} 14... a6 {[%clk 0:02:03.2]} 15. f4 {[%clk 0:01:58.4]} 15...
Nd7 {[%clk 0:02:00]} 16. Bg4 {[%clk 0:01:55]} 16... Ke7 {[%clk 0:01:55.4]} 17.
exd5 {[%clk 0:01:52.1]} 17... exd5 {[%clk 0:01:53]} 18. Rae1+ {[%clk 0:01:46.5]}
18... Kd6 {[%clk 0:01:50]} 19. Na4 {[%clk 0:01:43.4]} 19... Bd4 {[%clk
0:01:46.5]} 20. Bb4+ {[%clk 0:01:34.2]} 20... Kc7 {[%clk 0:01:42.6]} 21. c3
{[%clk 0:01:11.9]} 21... Ba7 {[%clk 0:01:38.2]} 22. Bxd7 {[%clk 0:01:05.7]}
22... Kxd7 {[%clk 0:01:39.1]} 23. f5 {[%clk 0:01:06.4]} 23... a5 {[%clk
0:01:16.9]} 24. Ba3 {[%clk 0:01:00.3]} 24... Bb8+ {[%clk 0:00:38.2]} 25. Kh1
{[%clk 0:00:55.5]} 25... Ne5 {[%clk 0:00:36.6]} 26. Nb6+ {[%clk 0:00:54.5]}
26... Kd8 {[%clk 0:00:34.3]} 27. Nxa8 {[%clk 0:00:50.1]} 27... Ba7 {[%clk
0:00:34]} 28. d4 {[%clk 0:00:41.4]} 28... Nc4 {[%clk 0:00:33.9]} 29. Bc5 {[%clk
0:00:40.3]} 29... b6 {[%clk 0:00:31.8]} 30. b3 {[%clk 0:00:38.5]} 30... bxc5
{[%clk 0:00:28.7]} 31. bxc4 {[%clk 0:00:38.2]} 31... Kd7 {[%clk 0:00:27.5]} 32.
Rb1 {[%clk 0:00:35.4]} 32... Rxa8 {[%clk 0:00:27.4]} 33. Rb7+ {[%clk 0:00:35.4]}
33... Kd6 {[%clk 0:00:28.3]} 34. dxc5+ {[%clk 0:00:28.4]} 34... Bxc5 {[%clk
0:00:28.3]} 35. cxd5 {[%clk 0:00:28.7]} 35... Kxd5 {[%clk 0:00:24.5]} 36. Rxg7
{[%clk 0:00:27.1]} 36... Kc4 {[%clk 0:00:23.6]} 37. Rc7 {[%clk 0:00:26.4]} 37...
Ra6 {[%clk 0:00:23.3]} 38. Rf3 {[%clk 0:00:26.4]} 38... Rb6 {[%clk 0:00:23.1]}
39. Rf1 {[%clk 0:00:18.7]} 39... Kxc3 {[%clk 0:00:22.5]} 40. Rxh7 {[%clk
0:00:18.5]} 40... Be3 {[%clk 0:00:20.4]} 41. h4 {[%clk 0:00:18]} 41... c5 {[%clk
0:00:20.3]} 42. Re7 {[%clk 0:00:18.2]} 42... Bd2 {[%clk 0:00:18.1]} 43. g4
{[%clk 0:00:16.1]} 43... c4 {[%clk 0:00:17.9]} 44. g5 {[%clk 0:00:16.6]} 44...
fxg5 {[%clk 0:00:17.8]} 45. f6 {[%clk 0:00:17.3]} 45... gxh4 {[%clk 0:00:16]}
46. f7 {[%clk 0:00:17.5]} 46... Bh6 {[%clk 0:00:16.5]} 47. f8=Q {[%clk
0:00:14.5]} 47... Bxf8 {[%clk 0:00:16.4]} 48. Rxf8 {[%clk 0:00:15.4]} 48... Kb2
{[%clk 0:00:16.7]} 49. Rc7 {[%clk 0:00:14.9]} 49... c3 {[%clk 0:00:16.5]} 50.
Rf2+ {[%clk 0:00:13.2]} 50... c2 {[%clk 0:00:16.8]} 51. Rcxc2+ {[%clk
0:00:12.8]} 51... Ka3 {[%clk 0:00:16.9]} 52. Rf3+ {[%clk 0:00:11.9]} 52... Ka4
{[%clk 0:00:15.8]} 53. Rc4+ {[%clk 0:00:12.5]} 53... Kb5 {[%clk 0:00:15.6]} 54.
Rxh4 {[%clk 0:00:13.1]} 54... Ka6 {[%clk 0:00:15.4]} 55. a4 {[%clk 0:00:12.4]}
55... Rb4 {[%clk 0:00:15]} 56. Rxb4 {[%clk 0:00:11.6]} 56... axb4 {[%clk
0:00:15.9]} 57. Rf5 {[%clk 0:00:12.2]} 57... b3 {[%clk 0:00:15.3]} 58. Rb5
{[%clk 0:00:12.8]} 58... b2 {[%clk 0:00:16.2]} 59. Rxb2 {[%clk 0:00:13]} 59...
Ka5 {[%clk 0:00:17.1]} 60. Ra2 {[%clk 0:00:13.7]} 1-0

[Event "*** Titled Tuesday Blitz"]
[Site "Chess.com"]
[Date "2021.04.20"]
[Round "9"]
[White "shnitez"]
[Black "BvsN"]
[Result "0-1"]
[WhiteElo "2501"]
[BlackElo "2387"]
[TimeControl "180+1"]
[EndTime "11:45:56 PDT"]
[Termination "BvsN won by resignation"]

1. d4 {[%clk 0:03:00.9]} 1... d5 {[%clk 0:02:59.9]} 2. Nc3 {[%clk 0:03:01.3]}
2... Nf6 {[%clk 0:02:59.4]} 3. Bf4 {[%clk 0:03:01.8]} 3... e6 {[%clk 0:02:59.2]}
4. e3 {[%clk 0:03:02.2]} 4... Bb4 {[%clk 0:02:55.7]} 5. Bd3 {[%clk 0:02:59.5]}
5... c5 {[%clk 0:02:53.8]} 6. dxc5 {[%clk 0:02:59.8]} 6... Qa5 {[%clk 0:02:51]}
7. Ne2 {[%clk 0:02:59.5]} 7... Bxc5 {[%clk 0:02:43.9]} 8. a3 {[%clk 0:02:56]}
8... Qd8 {[%clk 0:02:41.5]} 9. O-O {[%clk 0:02:54.7]} 9... O-O {[%clk
0:02:40.8]} 10. e4 {[%clk 0:02:50.6]} 10... Nc6 {[%clk 0:02:36.7]} 11. Ng3
{[%clk 0:02:39.4]} 11... Be7 {[%clk 0:02:19.6]} 12. exd5 {[%clk 0:02:08.4]}
12... exd5 {[%clk 0:02:19]} 13. Nf5 {[%clk 0:01:56.1]} 13... Bxf5 {[%clk
0:02:18.7]} 14. Bxf5 {[%clk 0:01:56.7]} 14... Re8 {[%clk 0:02:16.6]} 15. Qd3
{[%clk 0:01:49.5]} 15... g6 {[%clk 0:02:12.2]} 16. Bh3 {[%clk 0:01:49.1]} 16...
d4 {[%clk 0:02:03.3]} 17. Nb5 {[%clk 0:01:25.2]} 17... Nd5 {[%clk 0:02:00.3]}
18. Bg3 {[%clk 0:01:25.4]} 18... Qb6 {[%clk 0:01:37.1]} 19. Bd7 {[%clk
0:00:36.9]} 19... Red8 {[%clk 0:01:36.5]} 20. Bxc6 {[%clk 0:00:36.9]} 20... bxc6
{[%clk 0:01:27.6]} 21. Nxd4 {[%clk 0:00:37]} 21... c5 {[%clk 0:01:15.6]} 22. Nb3
{[%clk 0:00:23.2]} 22... Rac8 {[%clk 0:01:11.4]} 23. Qc4 {[%clk 0:00:21.2]}
23... Bf6 {[%clk 0:01:06.7]} 24. Rab1 {[%clk 0:00:18.4]} 24... Qc6 {[%clk
0:01:03.1]} 25. c3 {[%clk 0:00:11.5]} 25... Kg7 {[%clk 0:01:02.6]} 26. Rfd1
{[%clk 0:00:09.5]} 26... Nb6 {[%clk 0:01:02.4]} 27. Qe2 {[%clk 0:00:07.7]} 27...
Re8 {[%clk 0:01:00.3]} 28. Qf1 {[%clk 0:00:07.5]} 28... Qe6 {[%clk 0:00:58.8]}
29. Na5 {[%clk 0:00:05.7]} 29... h5 {[%clk 0:00:55]} 30. Re1 {[%clk 0:00:06]}
30... Qd7 {[%clk 0:00:54]} 31. Rbd1 {[%clk 0:00:05.6]} 31... Qa4 {[%clk
0:00:51.2]} 32. b4 {[%clk 0:00:04.1]} 32... h4 {[%clk 0:00:50.3]} 33. Bf4 {[%clk
0:00:03.3]} 33... Qxa3 {[%clk 0:00:48.1]} 34. Rxe8 {[%clk 0:00:02.7]} 34... Rxe8
{[%clk 0:00:47.8]} 35. Nc4 {[%clk 0:00:03.1]} 35... Qxc3 {[%clk 0:00:42.5]} 36.
Nxb6 {[%clk 0:00:03.2]} 36... axb6 {[%clk 0:00:42.9]} 37. bxc5 {[%clk
0:00:03.9]} 37... bxc5 {[%clk 0:00:40.4]} 38. Rc1 {[%clk 0:00:04.2]} 38... Qb4
{[%clk 0:00:31]} 39. Be3 {[%clk 0:00:04.3]} 39... Bd4 {[%clk 0:00:27.3]} 40.
Bxd4+ {[%clk 0:00:04.5]} 40... cxd4 {[%clk 0:00:27.4]} 41. Rd1 {[%clk
0:00:05.2]} 41... Rd8 {[%clk 0:00:24.1]} 42. h3 {[%clk 0:00:05.1]} 42... Qc3
{[%clk 0:00:20.9]} 43. Qd3 {[%clk 0:00:05.8]} 43... Qxd3 {[%clk 0:00:20.9]} 44.
Rxd3 {[%clk 0:00:06.5]} 44... Kf6 {[%clk 0:00:21]} 45. Kf1 {[%clk 0:00:07.4]}
45... Ke5 {[%clk 0:00:21.1]} 46. Ke2 {[%clk 0:00:08.3]} 46... Ra8 {[%clk
0:00:20.8]} 47. Rd2 {[%clk 0:00:07.4]} 47... Ra3 {[%clk 0:00:20.8]} 48. Rb2
{[%clk 0:00:07.3]} 48... f5 {[%clk 0:00:20.1]} 49. Rb6 {[%clk 0:00:05.2]} 49...
g5 {[%clk 0:00:19.9]} 50. Rb5+ {[%clk 0:00:05.1]} 50... Ke4 {[%clk 0:00:19.5]}
51. Rb2 {[%clk 0:00:05.6]} 51... Rc3 {[%clk 0:00:18.3]} 52. Ra2 {[%clk
0:00:05.3]} 52... d3+ {[%clk 0:00:16.8]} 53. Kd2 {[%clk 0:00:04.9]} 53... Rc2+
{[%clk 0:00:14.6]} 54. Rxc2 {[%clk 0:00:04.9]} 54... dxc2 {[%clk 0:00:15.2]} 55.
Kxc2 {[%clk 0:00:05.8]} 55... g4 {[%clk 0:00:15.7]} 56. Kd2 {[%clk 0:00:05.5]}
56... gxh3 {[%clk 0:00:15.8]} 57. gxh3 {[%clk 0:00:06]} 57... Kf3 {[%clk
0:00:16.3]} 58. Ke1 {[%clk 0:00:06]} 58... Kg2 {[%clk 0:00:15.9]} 59. Ke2 {[%clk
0:00:06.7]} 59... f4 {[%clk 0:00:15.4]} 60. Ke1 {[%clk 0:00:06.3]} 60... f3
{[%clk 0:00:15.7]} 61. Kd2 {[%clk 0:00:04.9]} 61... Kxf2 {[%clk 0:00:16.2]} 62.
Kd3 {[%clk 0:00:05.8]} 62... Kg2 {[%clk 0:00:16.6]} 63. Ke4 {[%clk 0:00:06.7]}
63... f2 {[%clk 0:00:17.1]} 64. Kf4 {[%clk 0:00:06.8]} 64... f1=Q+ {[%clk
0:00:17.5]} 65. Kg4 {[%clk 0:00:07.7]} 65... Qf3+ {[%clk 0:00:14.2]} 66. Kxh4
{[%clk 0:00:07.6]} 66... Qxh3+ {[%clk 0:00:14.4]} 67. Kg5 {[%clk 0:00:08.5]}
67... Qf3 {[%clk 0:00:14.6]} 68. Kh4 {[%clk 0:00:08.4]} 68... Kf2 {[%clk
0:00:13.7]} 69. Kg5 {[%clk 0:00:08.1]} 69... Ke3 {[%clk 0:00:14]} 70. Kh4 {[%clk
0:00:07.4]} 70... Qg2 {[%clk 0:00:14.3]} 71. Kh5 {[%clk 0:00:06.6]} 71... Kf4
{[%clk 0:00:14.7]} 72. Kh6 {[%clk 0:00:07.5]} 72... Kf5 {[%clk 0:00:15.1]} 73.
Kh7 {[%clk 0:00:08.4]} 73... Kf6 {[%clk 0:00:15.7]} 74. Kh8 {[%clk 0:00:09.3]}
0-1